Cogmind - Beta 16 @@@ ROGUE MODE // 2026.01.03 @ 17:19:43 Player: oberon720 Result: Destroyed by G-34 Mercenary with Small Laser Performance ------------- Evolutions (0) 0 Regions Visited (1) 200 Robots Destroyed (30) 150 Value Destroyed (427) 427 Prototype IDs (2) 40 Alien Tech Used (0) 0 Bonus (0) 0 TOTAL SCORE: 817 Bonus ------- None Cogmind --------- Core Integrity 0/250 Matter 219/300 Energy 250/250 System Corruption 1% Temperature Cool (6) Movement Walking (190) Ox1 Location -10/Materials Parts ------- > --- POWER (1) -------- Ion Engine > --- PROPULSION (2) --- Improved Aluminum Leg Improved Aluminum Leg > --- UTILITY (2) ------ High-capacity Storage Unit Propulsion Shielding > --- WEAPON (2) ------- Assault Rifle Assault Rifle > --- INVENTORY (20) --- Improved Aluminum Leg Improved Aluminum Leg Improved Heat Sink Huge Storage Unit Seismic Detector Light Armor Plating Hardened Light Armor Plating Hardened Light Armor Plating Hardened Light Armor Plating Hardened Light Armor Plating Peak State ------------ > --- POWER ------------ Light Ion Engine > --- PROPULSION ------- Improved Aluminum Leg Improved Aluminum Leg > --- UTILITY ---------- High-capacity Storage Unit Propulsion Shielding > --- WEAPON ----------- Assault Rifle Assault Rifle > --- INVENTORY -------- Improved Heat Sink Huge Storage Unit Seismic Detector Light Armor Plating Hardened Light Armor Plating Hardened Light Armor Plating [Rating: 10] Favorites ----------- Power Ion Engine Engine Ion Engine Propulsion Aluminum Leg Treads Light Treads Leg Aluminum Leg Wheel Wheel Flight Unit Flight Unit Utility High-capacity Storage Unit Device Tractor Beam Storage High-capacity Storage Unit Protection Propulsion Shielding Weapon Assault Rifle Energy Gun Medium Laser Ballistic Gun Assault Rifle Build | -11 -10 ------- Run | Yrd Mat Slots Evolved . | . . Power . | . . Propulsion . | . . Utility . | . . Weapon . | . . Parts Attached 30 | 9 21 Power 4 | 1 3 Engine 4 | 1 3 Core . | . . Reactor . | . . Propulsion 11 | 4 7 Treads 1 | 1 . Leg 8 | 2 6 Wheel 1 | 1 . Hover . | . . Flight 1 | . 1 Utility 8 | 2 6 Device 2 | 1 1 Storage 5 | 1 4 Processor . | . . Hackware . | . . Protection 1 | . 1 Artifact . | . . Weapon 7 | 2 5 Energy Gun 3 | 1 2 Energy Cannon . | . . Ballistic Gun 4 | 1 3 Ballistic Cannon . | . . Launcher . | . . Special Weapon . | . . Impact Weapon . | . . Slashing Weapon . | . . Piercing Weapon . | . . Special Melee Weapon . | . . Unidentified Prototypes . | . . Parts Lost 3 | . 3 Power . | . . Propulsion 1 | . 1 Utility 1 | . 1 Weapon 1 | . 1 Highest Loss Streak 2 | . 2 To Critical Strikes . | . . Average Backups 3 | . 3 Power . | . . Propulsion . | . . Utility 2 | . 2 Weapon . | . . Tool/Special . | . . Unused Backups 8 | . 8 Power . | . . Propulsion 2 | . 2 Utility 6 | . 6 Weapon . | . . Tool/Special . | . . Average Slot Usage (%) 99 | . 99 Engine 14 | . 14 Leg 27 | . 27 Device 8 | . 8 Storage 14 | . 14 Protection 4 | . 4 Energy Gun 12 | . 12 Ballistic Gun 15 | . 15 Peak Build Rating 10 | 7 10 Average Rating 7 | 4 7 On Entrance 3 | . 7 Avg Prop Armor Cover (%) . | . . Naked Turns . | . . Heaviest Build 50 | 15 50 Greatest Support 26 | 20 26 Greatest Overweight (x) 12 | . 12 Average Overweight (x) 1 | . 1 Largest Inventory Capacity 25 | 8 25 Average Capacity 18 | 7 18 Most Carried 11 | 5 11 Average Carried 3 | . 3 Final Capacity 20 | 8 20 Final Carried 10 | 1 10 Class Distribution -------------------- 98% | Mutant Dominant Class ---------------- Mutant | -10/Materials Resources | -11 -10 ----------- Run | Yrd Mat Matter Collected 740 | 314 426 Remotely 431 | 185 246 Salvage Created 966 | 130 836 Parts 62 | 10 52 Haulers Intercepted 1 | . 1 Recyclers Shooed . | . . Parts Field Recycled . | . . Retrieved Matter . | . . Parts Self-Destructed . | . . Prevented . | . . Parts Restored . | . . Kills | -11 -10 ------- Run | Yrd Mat Combat Hostiles Destroyed 10 | . 10 Guns 10 | . 10 Classes Destroyed 8 | 2 6 Worker 6 | . 6 Builder 3 | . 3 Tunneler 6 | 4 2 Hauler 1 | . 1 Recycler 3 | 1 2 Operator 1 | . 1 Swarmer 2 | . 2 Grunt 8 | . 8 Best Kill Streak 6 | 4 6 Combat Bots Only 2 | . 2 Max Kills in Single Turn 2 | 1 2 Gunslinging . | . . Exploded . | . . Melee . | . . Uniques/NPCs Destroyed . | . . Combat | -11 -10 -------- Run | Yrd Mat Hostile Shots Fired 126 | . 126 Missed 39 | . 39 Hits 87 | . 87 Projectile 87 | . 87 Critical Strikes 1 | . 1 Damage Taken 1042 | . 1042 Core 255 | . 255 Absorbed by Shields . | . . Redirected to Shielding 26 | . 26 Core Remaining (%) 100 | 100 . Volleys Fired 98 | 11 87 Largest 2 | 2 2 Hottest 70 | 70 70 Shots Fired 191 | 22 169 Gun 191 | 22 169 Cannon . | . . Launcher . | . . Special . | . . Kinetic 112 | 11 101 Thermal 67 | 11 56 Explosive . | . . Electromagnetic 12 | . 12 Robot Hit Streak 7 | 5 7 Robot Miss Streak 4 | 2 4 Penetration Max . | . . Secondary Targets 2 | . 2 Max Gunslinging Chain 1 | . 1 Shots Hit Robots 104 | 13 91 Core Hits 42 | 6 36 Critical Kills 2 | 1 1 Critical Parts Destroyed . | . . Critical Strikes 6 | 1 5 Burn 4 | . 4 Destroy 2 | 1 1 Melee Attacks . | . . Impact . | . . Slashing . | . . Piercing . | . . Sneak Attacks . | . . Combat Hostiles . | . . Follow-up Attacks . | . . Damage Inflicted 1445 | 192 1253 Guns 1375 | 192 1183 Cannons . | . . Explosions 70 | . 70 Melee . | . . Ramming . | . . Kinetic 780 | 82 698 Thermal 603 | 110 493 Explosive . | . . Electromagnetic 62 | . 62 Impact . | . . Slashing . | . . Piercing . | . . Highest Corruption 1 | . 1 Average Corruption 1 | . 1 Corruption Purged . | . . Corruption Blocked . | . . Overload Shots . | . . Overflow Damage . | . . Projectiles . | . . Explosions . | . . Melee . | . . Knockbacks . | . . Impact . | . . Kinetic . | . . Secondary . | . . Self-Inflicted Damage 33 | . 33 Shots 1 | . 1 Rammed . | . . Targets Rammed . | . . Kicked . | . . Crushed . | . . Highest Temperature 105 | 54 105 Average Temperature 27 | 20 28 Received Heat Transfer 459 | . 459 Siege Activations . | . . Martial Activations . | . . Shielding Activations . | . . Robots Disrupted . | . . Combat Hostiles . | . . Robots Corrupted . | . . Combat Hostiles . | . . Parts Fried 1 | . 1 Impact Corruptions . | . . Robots Melted . | . . Combat Hostiles . | . . Parts Melted 1 | . 1 Heat Transferred 1937 | 333 1604 Parts Sabotaged . | . . Parts Stolen . | . . Parts Stripped . | . . Power Chain Reactions 1 | . 1 Alert | -11 -10 ------- Run | Yrd Mat Maximum Alert Level . | . . Low Security (%) 100 | 100 100 Level 1 . | . . Level 2 . | . . Level 3 . | . . Level 4 . | . . Level 5 . | . . High Security . | . . Max Security . | . . Peak Influence 55 | 15 55 Initial 6 | . 6 Average 12 | 3 13 Influence Increases 369 | 25 344 Destroy 0b10 Robot/C 200 | . 200 Destroy 0b10 Robot/NC 100 | 25 75 Destroy Leader 42 | . 42 Successful Hack 5 | . 5 Disable Machine 15 | . 15 Destroy Structure 7 | . 7 Influence Decreases 317 | 15 302 Entered New Map 4 | . 4 Time Decay 286 | 15 271 Lost Part 25 | . 25 Purge Threat 2 | . 2 Squads Dispatched 2 | . 2 Investigation . | . . Extermination . | . . Reinforcement 2 | . 2 Assault . | . . Garrison . | . . Intercept . | . . Searches Triggered . | . . Construction Impeded . | . . Haulers Reinforced . | . . Active Scanning Responses . | . . Cargo Convoy Interrupts . | . . Stealth | -11 -10 --------- Run | Yrd Mat Distress Signals . | . . Communications Jammed . | . . Distress Signals . | . . Times Spotted 19 | . 19 Peak Tracking Total 4 | . 4 Tactical Retreats . | . . Traps | -11 -10 ------- Run | Yrd Mat Traps Triggered . | . . Indirectly . | . . Trap Hack Attempts . | . . Triggered . | . . Disarmed . | . . Reprogrammed . | . . Reused . | . . Traps Extracted . | . . Installed . | . . Triggered . | . . Machines | -11 -10 ---------- Run | Yrd Mat Machines Disabled 1 | . 1 Max in Single Turn 1 | . 1 Machines Repaired . | . . Machines Dismantled . | . . Machines Sabotaged . | . . Overloaded Fab Kills . | . . Hacking | -11 -10 --------- Run | Yrd Mat Machines Accessed 5 | . 5 Terminals 4 | . 4 Fabricators . | . . Repair Stations . | . . Recycling Units 1 | . 1 Scanalyzers . | . . Garrison Access . | . . Total Hacks 17 | . 17 Successful 4 | . 4 Failed 13 | . 13 Catastrophic 2 | . 2 Database Lockouts . | . . Manual 3 | . 3 Terminals 14 | . 14 Fabricators . | . . Repair Stations . | . . Recycling Units 3 | . 3 Scanalyzers . | . . Garrison Access . | . . Terminal Hacks 4 | . 4 Robot Analysis 1 | . 1 Prototype ID Bank 1 | . 1 Unreport Threat 1 | . 1 Registered Components 1 | . 1 Fabricator Hacks . | . . Repair Station Hacks . | . . Recycling Unit Hacks . | . . Scanalyzer . | . . Garrison Access Hacks . | . . Unauthorized Hacks . | . . Terminals . | . . Fabricators . | . . Repair Stations . | . . Recycling Units . | . . Scanalyzers . | . . Garrison Access . | . . Data Cores Recovered . | . . Used . | . . Hacking Detections 4 | . 4 Full Trace Events 4 | . 4 Feedback Events 1 | . 1 Corruption 1 | . 1 Feedback Blocked . | . . Robot Schematics Acquired . | . . Robots Built . | . . Authchips . | . . Time . | . . Total Robot Build Rating . | . . Part Schematics Acquired . | . . Parts Built . | . . Authchips . | . . Time . | . . Total Part Build Rating . | . . Part Studies Acquired . | . . Parts Repaired . | . . Time . | . . Parts Recycled . | . . Recycled Matter . | . . Retrieved Matter . | . . Retrieved Components . | . . Parts Scanalyzed . | . . Part Schematics Acquired . | . . Parts Damaged . | . . Bothacking | -11 -10 ------------ Run | Yrd Mat Used RIF Installer . | . . Robots Hacked . | . . Non-combat . | . . Combat . | . . Robot Hacks Applied . | . . Relay Couplers Released . | . . Fabnet Peak Effective % . | . . Robots Rewired . | . . Allies Hacked . | . . Hacks Repelled . | . . Allies | -11 -10 -------- Run | Yrd Mat Total Allies . | . . Largest Group . | . . Highest-Rated Group . | . . Highest-Rated Ally . | . . Total Orders . | . . Ally Attacks . | . . Total Damage . | . . Kills . | . . Allies Corrupted . | . . Allies Melted . | . . Intel | -11 -10 ------- Run | Yrd Mat Active Infowar (turns) . | . . Robot Analysis Total 1 | . 1 Derelict Logs Recovered . | . . Drone Launches . | . . Drone Recoveries . | . . Exploration | -11 -10 ------------- Run | Yrd Mat Turns Passed 1732 | 96 1636 Spaces Moved 597 | 40 557 Core 12 | 12 . Treads 6 | 6 . Legs 576 | 20 556 Wheels 2 | 2 . Hover . | . . Flight 1 | . 1 Fastest Speed 50 | 50 120 Average Speed 225 | 103 234 Slowest Speed 1010 | 160 1010 Overloaded Moves . | . . Propulsion Burnouts . | . . Robots Hopped . | . . Potential Cave-ins . | . . Cave-ins Triggered . | . . Exploration Rate (%) 41 | 4 78 Regions Visited 1 Branch Regions . Pre-discovered Areas . | . . Known Exits Taken . | . . Unknown Exits Taken 1 | 1 . Scrap Searched . | . . Spaces Dug . | . . Terrain Destroyed 3 | . 3 Melee . | . . Projectile . | . . AOE 3 | . 3 Terrain Rammed . | . . Walls Destroyed . | . . Machines Disabled . | . . Actions | -11 -10 --------- Run | Yrd Mat Total 792 | 73 719 Wait 8 | 2 6 Move 596 | 39 557 Hop . | . . Pick Up 39 | 10 29 Fast Attach . | . . Attach 12 | 9 3 Detach . | . . Swap 20 | . 20 Drop 19 | 2 17 Fire 98 | 11 87 Melee . | . . Ram . | . . Kick . | . . Crush . | . . Escape Stasis . | . . Rewire . | . . Trap . | . . Miscellaneous . | . . Route ------- -11/Scrapyard -10/Materials (discovered 3 exits: [*Mat x2] / [*Min]) History --------- Turn | Location | Event 26 | -11/Scrapyard | Discovered new exit (range 15) 97 | -11/Scrapyard | Entered Materials 98 | -10/Materials | Met a group of wandering Federalists 163 | -10/Materials | Discovered new exit (range 9) 303 | -10/Materials | Build established: Mutant 489 | -10/Materials | Discovered new exit (range 16) 900 | -10/Materials | Discovered new exit (range 10) 913 | -10/Materials | Core integrity fell below 50% 1645 | -10/Materials | Core integrity fell below 20% 1733 | -10/Materials | Destroyed by G-34 Mercenary with Small Laser Last Messages --------------- Acquired Assault Rifle. Dropped EM Pulse Gun. Acquired Imp. Aluminum Leg. Dropped Aluminum Leg. Acquired Imp. Aluminum Leg. Dropped Aluminum Leg. Acquired Hrd. Light Armor Plating. Acquired Imp. Aluminum Leg. G-34 Mercenary destroyed. Switching to secondary target: G-34 Mercenary. G-34 Mercenary destroyed. R-06 Scavenger collects Aluminum Leg. Acquired 48 matter. R-06 Scavenger collects Sml. Laser. Acquired 41 matter. Acquired Ion Engine. Dropped Lgt. Ion Engine. R-06 Scavenger collects Lgt. Ion Engine. G-34 Mercenary destroyed. Switching to secondary target: G-34 Mercenary. Map ----- +----------------------------------------------------+ | ????????? #??"""" ?????#+#+## | | ?????????##+####??"""" ##### *% % | | ???????????????????""" + ! | | ???????????????# ## | | ???????????????#########?#* ## | | ???????????????# ### % ## "! | | ???????????????# " # *%= ##""! | | ???????????????# "" + ! ##### | | ???????????????# "" # % # | | ???????????????# """ # ####+# | | ????????????? ?# "" # # # | | ????????????? ?# """ # + * # | | ????????????? ?# """ # # * # | | ????????????# ## """ # # # | | ???????????# ## " # # # | | ???????????# ## # # # | | ???????????+ ########## ####+####+ | | ???????????#%!#????????# #?## ### | | ??????????##=g##??????## ### | | ??????????# #??????# | | ??????????# #??????# ## ### | | ??????????? ! +??????# " ?# #?# | | ??????????? ???????# ## ### | | ????#####??# #???????# # ## | | ????# | # #???????####??# ## | | ????# /@ #??????######## ## | | ????# """ # #??????# # ## | | ????# """??# ######?# """ ## ##### | | ????? "????# #?# "Y ## #???? | | ???????????# #?# """ ## #???? | | ???????????###### #?# ## #???? | | ????????????????# #?# ## ##??? | | ????????######### ####+##+## #??? | | ????????# #??? | | ????????# T #??? | | ??????### #########+###/## #??? | | ??????# #????# ######??? | | ??????# = //#????# "T" #???????? | | ??????# = //#????# """ [ #???????? | | ??????########????# #???????? | | ??????????????????###########???????? | | | | | | | | | | | | | | | | | | | +----------------------------------------------------+ Best States ------------- Heat Dissipation 39 Energy Generation 10 Energy Capacity 250 Matter Stores 300 Matter Capacity 300 Sight Range 16 Terrain Scan Density 10 Propulsion Shielding 33 Evasion (%) 55 Recoil Reduction 1 Item Schematics ----------------- None Robot Schematics ------------------ None Fabricated ------------ Nothing Repaired ---------- Nothing Studied --------- None Alien Tech Used ----------------- None Achievements -------------- Use The Force Challenges ------------ None Game ------ Seed VariableTechHoverbase Manual? 0 Play Time 00:15:36 Cumulative 29.9 hours Start 2026.01.03 @ 17:04:05 End 2026.01.03 @ 17:19:43 Sessions 1 Manual Loads 0 Difficulty Rogue Special Mode None Game No. 65 Rogue 62 Adventurer 0 Explorer 3 Win Type - Total 0 Types 0/0/0/0/0/0/0/0/0/0 Lore% 15 Gallery% 27 Achievement% 18 Wizard Run 0 Options --------- Layout 0 ASCII 0 Keyboard 0 Movement Mouse Keybinds 0 Fullscreen 2 Font 18/SmallcapsGlow Map View 76x50 Zoom Use 0% Tactical HUD 0 Map Filters NONE Filters NONE Steam 1 RUN: 484ea357-ea09-4b7b-bc6a-ade3d088f679